[Event "Early-Titled-Tuesday-Blitz-May-07-2024"]
[Site "Chess.com"]
[Date "2024.05.07"]
[Round "5"]
[White "miaou33"]
[Black "AnnaChessLook"]
[Result "1-0"]
[WhiteElo "2549"]
[BlackElo "2309"]
[TimeControl "180+1"]
[EndTime "8:59:41 PDT"]
[Termination "miaou33 won by resignation"]

1. e4 {[%clk 0:03:00.9]} 1... c5 {[%clk 0:02:58]} 2. Nf3 {[%clk 0:03:00.6]} 2...
Nc6 {[%clk 0:02:57.8]} 3. b3 {[%clk 0:02:59.7]} 3... Nf6 {[%clk 0:02:57.1]} 4.
Nc3 {[%clk 0:02:59.5]} 4... g6 {[%clk 0:02:57]} 5. Bb2 {[%clk 0:02:59.6]} 5...
Bg7 {[%clk 0:02:57.6]} 6. Bb5 {[%clk 0:02:34.4]} 6... O-O {[%clk 0:02:54.9]} 7.
Bxc6 {[%clk 0:02:31]} 7... dxc6 {[%clk 0:02:51.3]} 8. d3 {[%clk 0:02:24.4]} 8...
Bg4 {[%clk 0:02:47.2]} 9. h3 {[%clk 0:02:23.8]} 9... Bxf3 {[%clk 0:02:35.7]} 10.
Qxf3 {[%clk 0:02:24.7]} 10... Nd7 {[%clk 0:02:35.2]} 11. Qe2 {[%clk 0:02:21.1]}
11... a5 {[%clk 0:02:29.2]} 12. a4 {[%clk 0:02:16]} 12... b5 {[%clk 0:02:26.1]}
13. h4 {[%clk 0:02:14.4]} 13... Nb6 {[%clk 0:01:56.5]} 14. h5 {[%clk 0:02:09.8]}
14... c4 {[%clk 0:01:36.7]} 15. Qf3 {[%clk 0:02:07.3]} 15... cxd3 {[%clk
0:01:28.3]} 16. cxd3 {[%clk 0:02:07.1]} 16... Qd7 {[%clk 0:01:11]} 17. Ke2
{[%clk 0:02:00.2]} 17... Rfd8 {[%clk 0:00:51]} 18. hxg6 {[%clk 0:01:54.2]} 18...
hxg6 {[%clk 0:00:50.4]} 19. Rh4 {[%clk 0:01:19.3]} 19... Qe6 {[%clk 0:00:47.2]}
20. Rah1 {[%clk 0:01:12]} 20... Qxb3 {[%clk 0:00:47]} 21. Nd1 {[%clk 0:00:16.9]}
21... Bxb2 {[%clk 0:00:39]} 22. Qh3 {[%clk 0:00:16.6]} 22... Qc2+ {[%clk
0:00:16.4]} 23. Ke1 {[%clk 0:00:17]} 23... Bc3+ {[%clk 0:00:16.2]} 24. Nxc3
{[%clk 0:00:17.2]} 24... Qxc3+ {[%clk 0:00:16.4]} 25. Kf1 {[%clk 0:00:13.8]}
25... Qxd3+ {[%clk 0:00:16.6]} 26. Kg1 {[%clk 0:00:13.5]} 26... Qxh3 {[%clk
0:00:16.4]} 27. R1xh3 {[%clk 0:00:12.2]} 27... Kg7 {[%clk 0:00:16.4]} 28. Rh7+
{[%clk 0:00:11.2]} 28... Kf6 {[%clk 0:00:16.4]} 29. Rf3+ {[%clk 0:00:09.6]}
29... Ke6 {[%clk 0:00:16.9]} 30. Rfxf7 {[%clk 0:00:10.5]} 30... Re8 {[%clk
0:00:16.3]} 31. Rfg7 {[%clk 0:00:11]} 31... bxa4 {[%clk 0:00:16.3]} 32. Rxg6+
{[%clk 0:00:11.4]} 32... Kd7 {[%clk 0:00:16.8]} 33. Rg3 {[%clk 0:00:07.1]} 33...
Kc7 {[%clk 0:00:14]} 34. Rh6 {[%clk 0:00:06.8]} 34... Rad8 {[%clk 0:00:14.2]}
35. Rc3 {[%clk 0:00:07.5]} 35... Rd6 {[%clk 0:00:14.9]} 36. Rh5 {[%clk
0:00:07.8]} 36... Rd4 {[%clk 0:00:14.8]} 37. Rxa5 {[%clk 0:00:06.7]} 37... Rxe4
{[%clk 0:00:13.9]} 38. Ra7+ {[%clk 0:00:07.2]} 38... Kd6 {[%clk 0:00:14.3]} 39.
Ra6 {[%clk 0:00:08.1]} 39... Nd5 {[%clk 0:00:14.7]} 40. Rcxc6+ {[%clk
0:00:07.6]} 40... Ke5 {[%clk 0:00:15.4]} 41. Re6+ {[%clk 0:00:07.8]} 41... Kd4
{[%clk 0:00:15.4]} 42. Rxa4+ {[%clk 0:00:07.6]} 42... Kd3 {[%clk 0:00:14.8]} 43.
Raxe4 {[%clk 0:00:06.2]} 43... Nc3 {[%clk 0:00:14.3]} 44. Re3+ {[%clk
0:00:06.3]} 44... Kd2 {[%clk 0:00:14.8]} 45. Rxe7 {[%clk 0:00:05.2]} 45... Rb8
{[%clk 0:00:13.9]} 46. Rd7+ {[%clk 0:00:05]} 46... Kc2 {[%clk 0:00:14.4]} 47.
Rc7 {[%clk 0:00:05.2]} 47... Rb1+ {[%clk 0:00:14.4]} 48. Kh2 {[%clk 0:00:05.7]}
48... Rb3 {[%clk 0:00:15.3]} 49. Rcxc3+ {[%clk 0:00:05.5]} 49... Rxc3 {[%clk
0:00:16.2]} 50. Rxc3+ {[%clk 0:00:06]} 1-0

[Event "Early-Titled-Tuesday-Blitz-May-07-2024"]
[Site "Chess.com"]
[Date "2024.05.07"]
[Round "5"]
[White "vaishali2001"]
[Black "Tonychess32"]
[Result "1-0"]
[WhiteElo "2695"]
[BlackElo "2489"]
[TimeControl "180+1"]
[EndTime "8:59:42 PDT"]
[Termination "vaishali2001 won on time"]

1. e4 {[%clk 0:03:00.9]} 1... e6 {[%clk 0:02:59.4]} 2. d4 {[%clk 0:02:59.6]}
2... d5 {[%clk 0:02:59.6]} 3. Nd2 {[%clk 0:02:58.2]} 3... dxe4 {[%clk
0:02:54.3]} 4. Nxe4 {[%clk 0:02:59.1]} 4... Nd7 {[%clk 0:02:54.6]} 5. Nf3 {[%clk
0:02:58.7]} 5... Ngf6 {[%clk 0:02:54.9]} 6. Bd3 {[%clk 0:02:59.1]} 6... Nxe4
{[%clk 0:02:52.8]} 7. Bxe4 {[%clk 0:02:59.4]} 7... Nf6 {[%clk 0:02:53.3]} 8. Bg5
{[%clk 0:02:59.8]} 8... Be7 {[%clk 0:02:48.3]} 9. Bxf6 {[%clk 0:03:00.1]} 9...
Bxf6 {[%clk 0:02:46.9]} 10. Qd3 {[%clk 0:03:00.6]} 10... h6 {[%clk 0:01:57.9]}
11. Bxb7 {[%clk 0:02:40.1]} 11... Bxb7 {[%clk 0:01:57.8]} 12. Qb5+ {[%clk
0:02:40.5]} 12... Qd7 {[%clk 0:01:58.5]} 13. Qxb7 {[%clk 0:02:40.8]} 13... O-O
{[%clk 0:01:59.4]} 14. Qe4 {[%clk 0:02:37.2]} 14... Qb5 {[%clk 0:01:52.8]} 15.
Qe2 {[%clk 0:01:46.1]} 15... Qxb2 {[%clk 0:01:50]} 16. O-O {[%clk 0:01:46.3]}
16... Qc3 {[%clk 0:01:00.8]} 17. Rab1 {[%clk 0:01:35.5]} 17... Rab8 {[%clk
0:01:00.7]} 18. Qe4 {[%clk 0:01:15.9]} 18... Rfd8 {[%clk 0:00:51.2]} 19. Rb3
{[%clk 0:01:04.8]} 19... Rxb3 {[%clk 0:00:47.4]} 20. cxb3 {[%clk 0:01:05.7]}
20... Bxd4 {[%clk 0:00:43.1]} 21. Nxd4 {[%clk 0:00:59]} 21... Qxd4 {[%clk
0:00:33.4]} 22. Qc6 {[%clk 0:00:41.9]} 22... Qb6 {[%clk 0:00:30.5]} 23. Qc3
{[%clk 0:00:40.8]} 23... c5 {[%clk 0:00:27.5]} 24. g3 {[%clk 0:00:38.1]} 24...
Rd4 {[%clk 0:00:25.3]} 25. Rc1 {[%clk 0:00:35.6]} 25... Rd5 {[%clk 0:00:16.7]}
26. h4 {[%clk 0:00:35.6]} 26... h5 {[%clk 0:00:15.4]} 27. Kg2 {[%clk 0:00:31.9]}
27... Qc6 {[%clk 0:00:14.8]} 28. Qf3 {[%clk 0:00:30.9]} 28... Qd6 {[%clk
0:00:14.6]} 29. Rc4 {[%clk 0:00:26.8]} 29... g6 {[%clk 0:00:10.5]} 30. Rf4
{[%clk 0:00:26.8]} 30... Qd7 {[%clk 0:00:08.7]} 31. Rc4 {[%clk 0:00:23.9]} 31...
Qd6 {[%clk 0:00:05.9]} 32. Rf4 {[%clk 0:00:23.1]} 32... Rf5 {[%clk 0:00:05.2]}
33. Rxf5 {[%clk 0:00:19]} 33... gxf5 {[%clk 0:00:03]} 34. Qxh5 {[%clk
0:00:13.5]} 34... Qd5+ {[%clk 0:00:03.2]} 35. Qf3 {[%clk 0:00:13.2]} 35... Qd6
{[%clk 0:00:01.7]} 36. Qa8+ {[%clk 0:00:12]} 36... Kg7 {[%clk 0:00:01.8]} 37.
Qxa7 {[%clk 0:00:12.6]} 37... Qd5+ {[%clk 0:00:02.1]} 38. Kg1 {[%clk 0:00:11.9]}
38... Qd4 {[%clk 0:00:02.4]} 39. Qb7 {[%clk 0:00:08]} 39... Qa1+ {[%clk
0:00:01.9]} 40. Kg2 {[%clk 0:00:06.9]} 40... Qxa2 {[%clk 0:00:02.8]} 41. Qb5
{[%clk 0:00:05.9]} 41... Qc2 {[%clk 0:00:02.8]} 42. Qc4 {[%clk 0:00:05.7]} 42...
Qb2 {[%clk 0:00:01.9]} 43. h5 {[%clk 0:00:05.6]} 43... Kh6 {[%clk 0:00:01.3]}
44. Qxc5 {[%clk 0:00:02.3]} 44... Qxb3 {[%clk 0:00:01.2]} 45. Qf8+ {[%clk
0:00:02.4]} 45... Kh7 {[%clk 0:00:01.3]} 46. Qxf7+ {[%clk 0:00:02.9]} 46... Kh8
{[%clk 0:00:01]} 47. h6 {[%clk 0:00:03.5]} 1-0

[Event "Early-Titled-Tuesday-Blitz-May-07-2024"]
[Site "Chess.com"]
[Date "2024.05.07"]
[Round "5"]
[White "LuisFSiles"]
[Black "Skatchkov_V"]
[Result "0-1"]
[WhiteElo "2486"]
[BlackElo "2627"]
[TimeControl "180+1"]
[EndTime "8:59:42 PDT"]
[Termination "Skatchkov_V won on time"]

1. e4 {[%clk 0:03:00.9]} 1... e5 {[%clk 0:02:33.3]} 2. Nf3 {[%clk 0:02:59.2]}
2... d5 {[%clk 0:02:30.5]} 3. exd5 {[%clk 0:02:56]} 3... e4 {[%clk 0:02:29.8]}
4. Qe2 {[%clk 0:02:55]} 4... Nf6 {[%clk 0:02:28.1]} 5. Nc3 {[%clk 0:02:52.5]}
5... Be7 {[%clk 0:02:27.2]} 6. Nxe4 {[%clk 0:02:49.4]} 6... Nxd5 {[%clk
0:02:25.9]} 7. g3 {[%clk 0:02:36.5]} 7... O-O {[%clk 0:02:22.9]} 8. Bg2 {[%clk
0:02:36.8]} 8... c5 {[%clk 0:02:21.2]} 9. O-O {[%clk 0:02:34.2]} 9... Nc6 {[%clk
0:02:19.4]} 10. d3 {[%clk 0:02:33.2]} 10... Bg4 {[%clk 0:02:14.3]} 11. c3 {[%clk
0:02:32]} 11... Re8 {[%clk 0:02:11.6]} 12. h3 {[%clk 0:02:30.2]} 12... Bh5
{[%clk 0:02:08.7]} 13. g4 {[%clk 0:02:26.3]} 13... Bg6 {[%clk 0:02:05.5]} 14.
Bd2 {[%clk 0:02:15.6]} 14... Qc7 {[%clk 0:02:00.9]} 15. Rad1 {[%clk 0:02:09.9]}
15... f5 {[%clk 0:01:40.5]} 16. gxf5 {[%clk 0:02:04.9]} 16... Bxf5 {[%clk
0:01:40.4]} 17. Bc1 {[%clk 0:01:32.2]} 17... Kh8 {[%clk 0:01:31.9]} 18. Rfe1
{[%clk 0:01:30.5]} 18... Nf4 {[%clk 0:01:14.7]} 19. Bxf4 {[%clk 0:01:28.8]}
19... Qxf4 {[%clk 0:01:12.2]} 20. Qe3 {[%clk 0:01:28.9]} 20... Qc7 {[%clk
0:01:06.9]} 21. Ng3 {[%clk 0:00:39]} 21... Bg6 {[%clk 0:01:05.1]} 22. Qd2 {[%clk
0:00:33.7]} 22... Bd6 {[%clk 0:01:02.3]} 23. Qg5 {[%clk 0:00:32.2]} 23... Bf4
{[%clk 0:01:01.5]} 24. Qg4 {[%clk 0:00:31]} 24... Rf8 {[%clk 0:00:56.1]} 25. Nh4
{[%clk 0:00:26.3]} 25... Ne5 {[%clk 0:00:54.3]} 26. Nxg6+ {[%clk 0:00:25.6]}
26... Nxg6 {[%clk 0:00:53.9]} 27. Re4 {[%clk 0:00:17.5]} 27... Rad8 {[%clk
0:00:44.3]} 28. d4 {[%clk 0:00:16.8]} 28... cxd4 {[%clk 0:00:40.7]} 29. Rexd4
{[%clk 0:00:16.4]} 29... Rde8 {[%clk 0:00:38.1]} 30. Rd7 {[%clk 0:00:15]} 30...
Qb6 {[%clk 0:00:37.7]} 31. Nh5 {[%clk 0:00:13.7]} 31... Bh6 {[%clk 0:00:28.7]}
32. Qd4 {[%clk 0:00:10.6]} 32... Qxb2 {[%clk 0:00:23.3]} 33. Nxg7 {[%clk
0:00:09.1]} 33... Re5 {[%clk 0:00:18.8]} 34. Nh5 {[%clk 0:00:04.2]} 34... Rxf2
{[%clk 0:00:13.1]} 35. Qxf2 {[%clk 0:00:03.4]} 35... Qxf2+ {[%clk 0:00:06.7]}
36. Kxf2 {[%clk 0:00:02.9]} 36... Rxh5 {[%clk 0:00:05.3]} 37. Rd8+ {[%clk
0:00:02]} 37... Bf8 {[%clk 0:00:05.7]} 38. R1d7 {[%clk 0:00:01.9]} 38... Rf5+
{[%clk 0:00:05.2]} 39. Kg3 {[%clk 0:00:00.9]} 39... Rf4 {[%clk 0:00:04.5]} 0-1

[Event "Early-Titled-Tuesday-Blitz-May-07-2024"]
[Site "Chess.com"]
[Date "2024.05.07"]
[Round "5"]
[White "TigrVShlyape"]
[Black "jefferyx"]
[Result "0-1"]
[WhiteElo "2937"]
[BlackElo "3133"]
[TimeControl "180+1"]
[EndTime "8:59:43 PDT"]
[Termination "jefferyx won on time"]

1. d4 {[%clk 0:03:00.9]} 1... Nf6 {[%clk 0:02:56.6]} 2. Bf4 {[%clk 0:02:58.8]}
2... d5 {[%clk 0:02:53.6]} 3. e3 {[%clk 0:02:58.6]} 3... c5 {[%clk 0:02:53.6]}
4. c3 {[%clk 0:02:58.4]} 4... e6 {[%clk 0:02:47.3]} 5. Nd2 {[%clk 0:02:57.4]}
5... Qb6 {[%clk 0:02:45.7]} 6. Qb3 {[%clk 0:02:52]} 6... Bd7 {[%clk 0:02:41.7]}
7. Ngf3 {[%clk 0:02:49.7]} 7... Bc6 {[%clk 0:02:41.4]} 8. h3 {[%clk 0:02:34.2]}
8... Nbd7 {[%clk 0:02:36.7]} 9. Be2 {[%clk 0:02:33.9]} 9... Be7 {[%clk
0:02:36.4]} 10. O-O {[%clk 0:02:33.4]} 10... O-O {[%clk 0:02:36.4]} 11. a4
{[%clk 0:02:29.8]} 11... Rfc8 {[%clk 0:02:24.5]} 12. Qa2 {[%clk 0:02:24.4]}
12... Qd8 {[%clk 0:02:07]} 13. Rfb1 {[%clk 0:02:08.4]} 13... a5 {[%clk
0:01:56.5]} 14. Re1 {[%clk 0:01:55.4]} 14... h6 {[%clk 0:01:55.4]} 15. Bd3
{[%clk 0:01:54]} 15... Ne4 {[%clk 0:01:43.9]} 16. Qb1 {[%clk 0:01:51.2]} 16...
f5 {[%clk 0:01:37.8]} 17. Rd1 {[%clk 0:01:43.6]} 17... Qe8 {[%clk 0:01:31.9]}
18. Ne5 {[%clk 0:01:42.8]} 18... Nxe5 {[%clk 0:01:30.1]} 19. Bxe5 {[%clk
0:01:43]} 19... Bxa4 {[%clk 0:01:27]} 20. Bc2 {[%clk 0:01:19.9]} 20... Bxc2
{[%clk 0:01:23.8]} 21. Qxc2 {[%clk 0:01:20.2]} 21... Nxd2 {[%clk 0:01:19.9]} 22.
Rxd2 {[%clk 0:01:17.9]} 22... a4 {[%clk 0:01:19.7]} 23. g4 {[%clk 0:01:12.4]}
23... fxg4 {[%clk 0:00:57.9]} 24. hxg4 {[%clk 0:01:11.9]} 24... b5 {[%clk
0:00:57]} 25. f4 {[%clk 0:00:38.1]} 25... b4 {[%clk 0:00:53.6]} 26. Qd3 {[%clk
0:00:27.4]} 26... c4 {[%clk 0:00:50.2]} 27. Qc2 {[%clk 0:00:18.4]} 27... b3
{[%clk 0:00:43.4]} 28. Qb1 {[%clk 0:00:18.1]} 28... a3 {[%clk 0:00:39.6]} 29.
bxa3 {[%clk 0:00:18.1]} 29... Rxa3 {[%clk 0:00:40.5]} 30. Rxa3 {[%clk
0:00:17.9]} 30... Bxa3 {[%clk 0:00:41.4]} 31. Rh2 {[%clk 0:00:16.4]} 31... Qf7
{[%clk 0:00:38.2]} 32. Kg2 {[%clk 0:00:15]} 32... Ra8 {[%clk 0:00:27.6]} 33. Kg3
{[%clk 0:00:14.5]} 33... Bf8 {[%clk 0:00:25.3]} 34. f5 {[%clk 0:00:12.1]} 34...
exf5 {[%clk 0:00:23.3]} 35. gxf5 {[%clk 0:00:12.4]} 35... Ra6 {[%clk 0:00:18.3]}
36. e4 {[%clk 0:00:09.6]} 36... dxe4 {[%clk 0:00:16.5]} 37. Qxe4 {[%clk
0:00:09.2]} 37... Ra2 {[%clk 0:00:17]} 38. Rxa2 {[%clk 0:00:08.2]} 38... bxa2
{[%clk 0:00:17.9]} 39. Qa8 {[%clk 0:00:08.2]} 39... Qxf5 {[%clk 0:00:15.7]} 40.
Qxa2 {[%clk 0:00:07.7]} 40... Qd3+ {[%clk 0:00:15.8]} 41. Kf4 {[%clk 0:00:07.8]}
41... Qxc3 {[%clk 0:00:15.3]} 42. d5 {[%clk 0:00:05.2]} 42... Qd3 {[%clk
0:00:13.5]} 43. Qa8 {[%clk 0:00:03.6]} 43... g5+ {[%clk 0:00:12.8]} 44. Kg4
{[%clk 0:00:02.6]} 44... Qe4+ {[%clk 0:00:13.2]} 45. Kh5 {[%clk 0:00:02.9]}
45... Qxe5 {[%clk 0:00:13.4]} 46. Qc6 {[%clk 0:00:01.7]} 46... g4+ {[%clk
0:00:10.1]} 47. Kxg4 {[%clk 0:00:00.9]} 47... Qg5+ {[%clk 0:00:10.7]} 48. Kf3
{[%clk 0:00:00.8]} 48... Qf5+ {[%clk 0:00:11.6]} 49. Ke3 {[%clk 0:00:00.6]}
49... Qe5+ {[%clk 0:00:11.3]} 50. Kf3 {[%clk 0:00:00.8]} 50... c3 {[%clk
0:00:10.1]} 51. Qg6+ {[%clk 0:00:00.4]} 51... Kh8 {[%clk 0:00:10.6]} 0-1

[Event "Early-Titled-Tuesday-Blitz-May-07-2024"]
[Site "Chess.com"]
[Date "2024.05.07"]
[Round "5"]
[White "IlanSchnaider"]
[Black "LoaySameer"]
[Result "1-0"]
[WhiteElo "2721"]
[BlackElo "2515"]
[TimeControl "180+1"]
[EndTime "8:59:43 PDT"]
[Termination "IlanSchnaider won by checkmate"]

1. c4 {[%clk 0:02:52.5]} 1... Nf6 {[%clk 0:02:59.8]} 2. Nf3 {[%clk 0:02:52.7]}
2... g6 {[%clk 0:03:00.4]} 3. g3 {[%clk 0:02:50]} 3... Bg7 {[%clk 0:03:00.5]} 4.
Bg2 {[%clk 0:02:50.7]} 4... O-O {[%clk 0:03:01.4]} 5. O-O {[%clk 0:02:51.4]}
5... d6 {[%clk 0:03:02]} 6. d4 {[%clk 0:02:51.4]} 6... c6 {[%clk 0:03:00.9]} 7.
Nc3 {[%clk 0:02:51.6]} 7... Qa5 {[%clk 0:03:01]} 8. e4 {[%clk 0:02:51.1]} 8...
Bg4 {[%clk 0:03:00.1]} 9. h3 {[%clk 0:02:50.4]} 9... Bxf3 {[%clk 0:03:00.5]} 10.
Qxf3 {[%clk 0:02:51.3]} 10... Nfd7 {[%clk 0:03:00.1]} 11. Rd1 {[%clk 0:02:51.2]}
11... c5 {[%clk 0:02:59.8]} 12. d5 {[%clk 0:02:35.8]} 12... Bxc3 {[%clk
0:02:58]} 13. bxc3 {[%clk 0:02:30.1]} 13... Nb6 {[%clk 0:02:52.6]} 14. Bh6
{[%clk 0:02:28.1]} 14... Re8 {[%clk 0:02:52.3]} 15. e5 {[%clk 0:02:24.2]} 15...
dxe5 {[%clk 0:02:42.7]} 16. d6 {[%clk 0:02:24.2]} 16... Nc6 {[%clk 0:02:33.2]}
17. dxe7 {[%clk 0:02:24.6]} 17... f5 {[%clk 0:02:13.7]} 18. Rd6 {[%clk
0:01:46.5]} 18... e4 {[%clk 0:02:00]} 19. Qf4 {[%clk 0:01:13.6]} 19... Nxc4
{[%clk 0:01:49.1]} 20. Rxc6 {[%clk 0:00:43.1]} 20... bxc6 {[%clk 0:01:45.1]} 21.
Bf1 {[%clk 0:00:43.6]} 21... Qa4 {[%clk 0:00:56.7]} 22. Qg5 {[%clk 0:00:15.3]}
22... Kf7 {[%clk 0:00:56]} 23. Bf8 {[%clk 0:00:15.6]} 23... Ne5 {[%clk
0:00:35.9]} 24. Qh6 {[%clk 0:00:14]} 24... Rxf8 {[%clk 0:00:24.7]} 25. exf8=Q+
{[%clk 0:00:10]} 25... Rxf8 {[%clk 0:00:25.6]} 26. Rb1 {[%clk 0:00:10.7]} 26...
Rd8 {[%clk 0:00:16]} 27. Qxh7+ {[%clk 0:00:06.7]} 27... Ke6 {[%clk 0:00:16.4]}
28. Rb7 {[%clk 0:00:05.9]} 28... Rd7 {[%clk 0:00:16.6]} 29. Qg8+ {[%clk
0:00:05.9]} 29... Kd6 {[%clk 0:00:16.7]} 30. Qf8+ {[%clk 0:00:04.4]} 30... Ke6
{[%clk 0:00:16.2]} 31. Qe8+ {[%clk 0:00:04.7]} 31... Kd6 {[%clk 0:00:16.7]} 32.
Rb2 {[%clk 0:00:03.6]} 32... Qd1 {[%clk 0:00:14.8]} 33. Qb8+ {[%clk 0:00:02.5]}
33... Ke6 {[%clk 0:00:15.1]} 34. Qe8+ {[%clk 0:00:02.3]} 34... Re7 {[%clk
0:00:14.8]} 35. Qg8+ {[%clk 0:00:02.8]} 35... Kf6 {[%clk 0:00:15.2]} 36. Qh8+
{[%clk 0:00:02.5]} 36... Ke6 {[%clk 0:00:15.6]} 37. Kg2 {[%clk 0:00:02.9]} 37...
Qf3+ {[%clk 0:00:15.2]} 38. Kg1 {[%clk 0:00:02.9]} 38... Qd1 {[%clk 0:00:15.3]}
39. Qc8+ {[%clk 0:00:03.1]} 39... Qd7 {[%clk 0:00:14.6]} 40. Qf8 {[%clk
0:00:02.6]} 40... Nf3+ {[%clk 0:00:15.2]} 41. Kg2 {[%clk 0:00:02.7]} 41... Qe8
{[%clk 0:00:15.4]} 42. Qh6 {[%clk 0:00:02.3]} 42... Qf7 {[%clk 0:00:14.6]} 43.
Bc4+ {[%clk 0:00:01.8]} 43... Kf6 {[%clk 0:00:14.7]} 44. Bxf7 {[%clk 0:00:02.7]}
44... Ne1+ {[%clk 0:00:14.9]} 45. Kf1 {[%clk 0:00:02.7]} 45... Nd3 {[%clk
0:00:15.8]} 46. Qxg6+ {[%clk 0:00:03.2]} 46... Ke5 {[%clk 0:00:16.4]} 47. Re2
{[%clk 0:00:02]} 47... f4 {[%clk 0:00:11.9]} 48. Qxe4+ {[%clk 0:00:01.4]} 48...
Kf6 {[%clk 0:00:12.2]} 49. Qxe7+ {[%clk 0:00:02.1]} 49... Kf5 {[%clk 0:00:12.5]}
50. gxf4 {[%clk 0:00:02.6]} 50... Nxf4 {[%clk 0:00:12.7]} 51. Qe5# {[%clk
0:00:03.2]} 1-0

[Event "Early-Titled-Tuesday-Blitz-May-07-2024"]
[Site "Chess.com"]
[Date "2024.05.07"]
[Round "5"]
[White "Casablanca"]
[Black "cthulhuuu"]
[Result "1-0"]
[WhiteElo "2713"]
[BlackElo "2506"]
[TimeControl "180+1"]
[EndTime "8:59:43 PDT"]
[Termination "Casablanca won by resignation"]

1. e4 {[%clk 0:03:00.9]} 1... d6 {[%clk 0:02:59.8]} 2. d4 {[%clk 0:03:00.1]}
2... Nf6 {[%clk 0:03:00.4]} 3. Nc3 {[%clk 0:02:59.6]} 3... c6 {[%clk 0:03:01]}
4. a4 {[%clk 0:02:58]} 4... e5 {[%clk 0:03:01.2]} 5. Bc4 {[%clk 0:02:54.2]} 5...
Be7 {[%clk 0:03:00.4]} 6. Nge2 {[%clk 0:02:53.5]} 6... O-O {[%clk 0:02:56.6]} 7.
O-O {[%clk 0:02:52.2]} 7... Nxe4 {[%clk 0:02:49.5]} 8. Nxe4 {[%clk 0:02:50.4]}
8... d5 {[%clk 0:02:49.8]} 9. Bd3 {[%clk 0:02:45.1]} 9... dxe4 {[%clk
0:02:48.9]} 10. Bxe4 {[%clk 0:02:46]} 10... exd4 {[%clk 0:02:47.5]} 11. Nxd4
{[%clk 0:02:39.5]} 11... Bf6 {[%clk 0:02:45.4]} 12. Be3 {[%clk 0:02:33.3]} 12...
Re8 {[%clk 0:02:43.9]} 13. Bf3 {[%clk 0:02:31]} 13... Na6 {[%clk 0:02:33.1]} 14.
c3 {[%clk 0:02:29.9]} 14... Nc7 {[%clk 0:02:23.5]} 15. Nb3 {[%clk 0:02:06.8]}
15... Nd5 {[%clk 0:02:09.6]} 16. Bxd5 {[%clk 0:02:05.2]} 16... cxd5 {[%clk
0:02:09.8]} 17. Bd4 {[%clk 0:02:05]} 17... Be6 {[%clk 0:02:00.4]} 18. Bxf6
{[%clk 0:02:00.3]} 18... Qxf6 {[%clk 0:02:01.3]} 19. Qd4 {[%clk 0:02:00.3]}
19... Qg5 {[%clk 0:01:54.9]} 20. Qd3 {[%clk 0:01:48.6]} 20... Bf5 {[%clk
0:01:25]} 21. Qg3 {[%clk 0:01:26.8]} 21... Qh6 {[%clk 0:00:37]} 22. Nd4 {[%clk
0:01:25.7]} 22... Be4 {[%clk 0:00:36.8]} 23. Rfe1 {[%clk 0:01:23.8]} 23... f5
{[%clk 0:00:25.8]} 24. f3 {[%clk 0:01:19.5]} 24... f4 {[%clk 0:00:26]} 25. Qf2
{[%clk 0:01:18.4]} 25... Bg6 {[%clk 0:00:24.6]} 26. Nb5 {[%clk 0:00:40.5]} 26...
Rxe1+ {[%clk 0:00:15.5]} 27. Rxe1 {[%clk 0:00:39.5]} 27... Re8 {[%clk
0:00:16.4]} 28. Rxe8+ {[%clk 0:00:31.7]} 28... Bxe8 {[%clk 0:00:17.3]} 29. Nxa7
{[%clk 0:00:29.3]} 29... Bxa4 {[%clk 0:00:14.3]} 30. Qc5 {[%clk 0:00:27.6]}
30... Qe6 {[%clk 0:00:08.6]} 31. Kf2 {[%clk 0:00:23.3]} 31... Bd1 {[%clk
0:00:07.7]} 32. Qc8+ {[%clk 0:00:22.9]} 32... Qxc8 {[%clk 0:00:07.4]} 33. Nxc8
{[%clk 0:00:23.8]} 33... Kf8 {[%clk 0:00:05.1]} 34. Nd6 {[%clk 0:00:23.4]} 34...
b6 {[%clk 0:00:05]} 35. Nc8 {[%clk 0:00:22.1]} 35... b5 {[%clk 0:00:05.2]} 36.
Nd6 {[%clk 0:00:19.5]} 36... Ba4 {[%clk 0:00:05.5]} 37. Ke2 {[%clk 0:00:19.1]}
37... Ke7 {[%clk 0:00:06]} 38. Nf5+ {[%clk 0:00:19.2]} 38... Kf6 {[%clk
0:00:05.7]} 39. Nd4 {[%clk 0:00:19.9]} 39... Ke5 {[%clk 0:00:05.7]} 40. b3
{[%clk 0:00:16.6]} 40... g5 {[%clk 0:00:02.9]} 41. bxa4 {[%clk 0:00:15.8]} 41...
bxa4 {[%clk 0:00:03.8]} 42. Nb5 {[%clk 0:00:15.2]} 42... h5 {[%clk 0:00:03.6]}
43. h3 {[%clk 0:00:15.7]} 43... Kf5 {[%clk 0:00:03.2]} 44. Kd3 {[%clk
0:00:15.9]} 44... g4 {[%clk 0:00:03.5]} 45. h4 {[%clk 0:00:16.3]} 45... gxf3
{[%clk 0:00:03.6]} 46. gxf3 {[%clk 0:00:17.2]} 46... Ke5 {[%clk 0:00:04.2]} 47.
Na3 {[%clk 0:00:17.2]} 47... Kd6 {[%clk 0:00:02.7]} 48. Kd4 {[%clk 0:00:18.1]}
48... Kc6 {[%clk 0:00:03.1]} 49. Nc2 {[%clk 0:00:17.9]} 49... Kb5 {[%clk
0:00:02.9]} 50. Kxd5 {[%clk 0:00:18.2]} 50... Ka5 {[%clk 0:00:02.6]} 51. c4
{[%clk 0:00:18.3]} 1-0